bitfinex/quotes_BTCUSD_20240817
["timestamp","ask_amount","ask_price","bid_price","bid_amount"]
[1723891571294,1.55790414,59295.0,59294.0,0.0019075]
[1723891571748,1.55990414,59295.0,59294.0,0.0009075]
[1723891572368,1.40909759,59295.0,59294.0,0.0009075]
[1723891572783,1.41924943,59295.0,59294.0,0.0009075]
[1723891573139,1.42524943,59295.0,59294.0,0.0019075]
[1723891573931,1.59065824,59295.0,59294.0,0.0019075]
[1723891574247,1.81408595,59295.0,59294.0,0.0019075]
[1723891574880,1.64738035,59295.0,59294.0,0.0009075]
[1723891575026,1.63938035,59295.0,59294.0,0.0009075]
[1723891575446,1.65338035,59295.0,59294.0,0.0009075]
[1723891576348,1.66738035,59295.0,59294.0,0.0009075]
[1723891576557,1.65338035,59295.0,59294.0,0.0009075]
[1723891576761,1.63938035,59295.0,59294.0,0.0009075]
[1723891577001,1.66738035,59295.0,59294.0,0.0009075]
[1723891577319,1.65338035,59295.0,59294.0,0.0009075]
[1723891577742,1.63938035,59295.0,59294.0,0.0009075]
[1723891577955,1.65338035,59295.0,59294.0,0.0009075]
[1723891578088,1.66738035,59295.0,59294.0,0.0009075]
[1723891578442,1.52536277,59295.0,59294.0,0.0009075]
[1723891578639,1.67584071,59295.0,59294.0,0.0009075]
[1723891579457,1.52536277,59295.0,59294.0,0.0009075]
[1723891580220,1.66184071,59295.0,59294.0,0.0009075]
[1723891580442,1.53936277,59295.0,59294.0,0.0009075]
[1723891580648,1.52536277,59295.0,59294.0,0.0009075]
[1723891580916,1.64634162,59295.0,59294.0,0.0009075]
[1723891581123,1.44386277,59295.0,59294.0,0.0009075]
[1723891581324,1.53836277,59295.0,59294.0,0.0009075]
[1723891581596,1.60794366,59295.0,59294.0,0.0009075]
[1723891582185,1.35814366,59295.0,59294.0,0.0009075]
[1723891582509,1.45264366,59295.0,59294.0,0.0009075]
[1723891582661,1.34130401,59295.0,59294.0,0.0009075]
[1723891583527,1.32730401,59295.0,59294.0,0.0009075]
[1723891583710,1.34130401,59295.0,59294.0,0.0009075]
[1723891587065,1.34433977,59295.0,59294.0,0.0009075]
[1723891587422,1.40012062,59295.0,59294.0,0.0009075]
[1723891588987,1.44465891,59295.0,59294.0,0.0009075]
[1723891589354,1.50044221,59295.0,59294.0,0.0009075]
[1723891589574,1.40012602,59295.0,59294.0,0.0009075]
[1723891592157,0.62845966,59295.0,59294.0,0.1394075]
[1723891592356,0.41760984,59295.0,59294.0,0.1394075]
[1723891592555,0.407458,59295.0,59294.0,0.1394075]
[1723891593032,0.393458,59295.0,59294.0,0.1394075]
[1723891593234,0.487958,59295.0,59294.0,0.1394075]
[1723891593794,0.75493,59295.0,59294.0,0.1394075]
[1723891594139,0.74093,59295.0,59294.0,0.0609075]
[1723891594337,0.75193,59295.0,59294.0,0.0609075]
[1723891594721,0.74093,59295.0,59294.0,0.0609075]
[1723891594921,0.75193,59295.0,59294.0,0.0609075]
[1723891595094,0.76793,59295.0,59294.0,0.0009075]
[1723891595498,0.77693,59295.0,59294.0,0.0009075]
[1723891595897,0.76793,59295.0,59294.0,0.0009075]
[1723891596343,0.77693,59295.0,59294.0,0.0009075]
[1723891596596,1.20228154,59295.0,59294.0,0.0009075]
[1723891597012,1.25247805,59295.0,59294.0,0.0009075]
[1723891597364,1.25248807,59295.0,59294.0,0.0009075]
[1723891598363,0.99952252,59295.0,59294.0,0.0009075]
[1723891598569,0.94930954,59295.0,59294.0,0.0009075]
[1723891598769,0.9995242,59295.0,59294.0,0.0009075]
[1723891599114,0.45049766,59295.0,59294.0,0.00124402]
[1723891599287,0.45049766,59295.0,59294.0,0.14524402]
[1723891599717,0.400283,59295.0,59294.0,0.14524402]
[1723891600296,0.19752566,59295.0,59294.0,0.14524402]
[1723891600563,0.147311,59295.0,59294.0,0.14524402]
[1723891601228,0.19754343,59295.0,59294.0,0.14524402]
[1723891601436,0.020825,59295.0,59294.0,0.27173202]
[1723891601648,0.020825,59295.0,59294.0,0.77768402]
[1723891602125,0.011825,59295.0,59294.0,0.77768402]
[1723891602385,0.021825,59295.0,59294.0,0.77768402]
[1723891602598,0.021825,59295.0,59294.0,0.52470802]
[1723891602830,0.011825,59295.0,59294.0,0.52470802]
[1723891603067,0.000825,59295.0,59294.0,0.52470802]
[1723891603288,0.002825,59295.0,59294.0,0.52470802]
[1723891603511,0.006825,59295.0,59294.0,0.52470802]
[1723891615466,0.006825,59295.0,59294.0,0.77768402]
[1723891615709,0.006825,59295.0,59294.0,0.52470802]
[1723891615905,0.006825,59295.0,59294.0,0.89518402]
[1723891616078,0.006825,59295.0,59294.0,0.80068402]
[1723891616616,0.002825,59295.0,59294.0,0.80068402]
[1723891617251,0.000825,59295.0,59294.0,0.80068402]
[1723891617761,0.001825,59295.0,59294.0,0.80068402]
[1723891618129,0.000825,59295.0,59294.0,0.52470802]
[1723891618366,0.000825,59295.0,59294.0,0.06454402]
[1723891619896,0.000825,59295.0,59294.0,0.00124402]
[1723891620122,0.63113754,59295.0,59294.0,0.0009075]
[1723891620322,0.88710954,59295.0,59294.0,0.0009075]
[1723891620553,0.93735668,59295.0,59294.0,0.0009075]
[1723891620744,0.88710954,59295.0,59294.0,0.0009075]
[1723891621160,0.88810954,59295.0,59294.0,0.0009075]
[1723891621700,0.88710954,59295.0,59294.0,0.0009075]
[1723891621827,0.88810954,59295.0,59294.0,0.0009075]
[1723891622050,0.89010954,59295.0,59294.0,0.0009075]
[1723891622249,0.88510954,59295.0,59294.0,0.0009075]
[1723891622676,0.93837232,59295.0,59294.0,0.0009075]
[1723891623003,0.72963754,59295.0,59294.0,0.0009075]
[1723891623585,0.55583754,59295.0,59294.0,0.0009075]
[1723891623926,0.131311,59295.0,59294.0,0.0009075]
[1723891624436,0.384283,59295.0,59294.0,0.0009075]
[1723891624784,0.637255,59295.0,59294.0,0.0009075]
[1723891625348,0.68751778,59295.0,59294.0,0.0009075]
[1723891625555,0.781255,59295.0,59294.0,0.0009075]
[1723891625779,0.99079808,59295.0,59294.0,0.0009075]
[1723891626579,0.781255,59295.0,59294.0,0.0009075]
[1723891626744,0.85669695,59295.0,59294.0,0.0009075]
[1723891626944,0.781255,59295.0,59294.0,0.0009075]
[1723891627153,0.85669695,59295.0,59294.0,0.0009075]
[1723891627673,0.781255,59295.0,59294.0,0.0009075]
[1723891628368,0.85671503,59295.0,59294.0,0.0009075]
[1723891628585,1.02826957,59295.0,59294.0,0.0009075]
[1723891628998,1.02827342,59295.0,59294.0,0.0009075]
[1723891629218,0.95280954,59295.0,59294.0,0.0009075]
[1723891630130,1.02828034,59295.0,59294.0,0.0009075]
[1723891630483,0.95280954,59295.0,59294.0,0.0009075]
[1723891631280,1.10735548,59295.0,59294.0,0.0009075]
[1723891631462,1.00683423,59295.0,59294.0,0.0009075]
[1723891632004,1.10735548,59295.0,59294.0,0.0009075]
[1723891632627,0.85438348,59295.0,59294.0,0.0009075]
[1723891632915,0.68916223,59295.0,59294.0,0.0009075]
[1723891633465,0.78968348,59295.0,59294.0,0.0009075]
[1723891635456,0.79008137,59295.0,59294.0,0.0009075]
[1723891635852,0.45780937,59295.0,59294.0,0.06354402]
[1723891636356,0.15976883,59295.0,59294.0,0.06354402]
[1723891636860,0.15976883,59295.0,59294.0,0.14124402]
[1723891637034,0.004825,59295.0,59294.0,0.26773202]
[1723891637187,0.004825,59295.0,59294.0,0.52070802]
[1723891637804,0.003825,59295.0,59294.0,0.52070802]
[1723891638008,0.003825,59295.0,59294.0,1.02666002]
[1723891638302,0.004825,59295.0,59294.0,1.04966002]
[1723891638728,0.000825,59295.0,59294.0,1.04966002]
[1723891638929,0.002825,59295.0,59294.0,1.04966002]
[1723891639361,0.000825,59295.0,59294.0,1.04966002]
[1723891640215,0.001825,59295.0,59294.0,1.04966002]
[1723891641550,0.002825,59295.0,59294.0,1.04966002]
[1723891643553,0.002825,59295.0,59294.0,0.79668402]
[1723891643759,0.001825,59295.0,59294.0,0.79668402]
[1723891644134,0.002825,59295.0,59294.0,0.79668402]
[1723891644573,0.001825,59295.0,59294.0,0.79668402]
[1723891644925,0.002825,59295.0,59294.0,0.79668402]
[1723891652025,0.001825,59295.0,59294.0,0.79668402]
[1723891652680,0.000825,59295.0,59294.0,0.79668402]
[1723891652998,0.001825,59295.0,59294.0,0.79668402]
[1723891653448,0.000825,59295.0,59294.0,0.79668402]
[1723891653834,0.001825,59295.0,59294.0,0.79668402]
[1723891666312,0.001825,59295.0,59294.0,1.22121456]
[1723891666514,0.001825,59295.0,59294.0,1.24878842]
[1723891667093,0.000825,59295.0,59294.0,1.24878842]
[1723891667598,0.001825,59295.0,59294.0,0.96823856]
[1723891668524,0.001825,59295.0,59294.0,0.97023856]
[1723891668755,0.000825,59295.0,59294.0,0.96823856]
[1723891669142,0.002825,59295.0,59294.0,0.97523856]
[1723891669583,0.001825,59295.0,59294.0,0.97023856]
[1723891669738,0.001825,59295.0,59294.0,1.22321456]
[1723891669916,0.002825,59295.0,59294.0,0.97923856]
[1723891670146,0.002825,59295.0,59294.0,0.80768402]
[1723891670332,0.002825,59295.0,59294.0,0.01224402]
[1723891670699,0.142925,59295.0,59294.0,0.01224402]
[1723891671740,0.363911,59295.0,59294.0,0.0119075]
[1723891672003,0.94543611,59295.0,59294.0,0.0119075]
[1723891672206,1.0877373,59295.0,59294.0,0.0119075]
[1723891672428,1.112931,59295.0,59294.0,0.0119075]
[1723891672608,1.28448554,59295.0,59294.0,0.0119075]
[1723891672810,1.28248554,59295.0,59294.0,0.0009075]
[1723891673192,1.28348554,59295.0,59294.0,0.0079075]
[1723891673595,1.28348554,59295.0,59294.0,0.0029075]
[1723891673596,1.28248554,59295.0,59294.0,0.0029075]
[1723891674007,1.28348554,59295.0,59294.0,0.0029075]
[1723891674260,1.15751702,59295.0,59294.0,0.0029075]
[1723891674389,1.06301702,59295.0,59294.0,0.0029075]
[1723891674592,1.15751702,59295.0,59294.0,0.0029075]
[1723891674817,1.15751702,59295.0,59294.0,0.0009075]
[1723891675197,1.16051702,59295.0,59294.0,0.0009075]
[1723891676140,1.15896414,59295.0,59294.0,0.0009075]
[1723891678247,1.10121947,59295.0,59294.0,0.0009075]
[1723891678460,1.15895827,59295.0,59294.0,0.0009075]
[1723891679894,1.41193027,59295.0,59294.0,0.0009075]
[1723891680497,1.40969698,59295.0,59294.0,0.0009075]
[1723891680920,1.53151881,59295.0,59294.0,0.0009075]
[1723891681092,1.85384052,59295.0,59294.0,0.0009075]
[1723891681347,1.70270878,59295.0,59294.0,0.0009075]
[1723891681751,1.73201991,59295.0,59294.0,0.0009075]
[1723891681982,1.57988695,59295.0,59294.0,0.0009075]
[1723891682389,1.73901991,59295.0,59294.0,0.0009075]
[1723891682803,1.74001991,59295.0,59294.0,0.0009075]
[1723891682978,1.72801991,59295.0,59294.0,0.0009075]
[1723891683183,1.73801991,59295.0,59294.0,0.0009075]
[1723891683428,1.75201991,59295.0,59294.0,0.0009075]
[1723891683763,1.58688695,59295.0,59294.0,0.0009075]
[1723891683962,1.42869698,59295.0,59294.0,0.0009075]
[1723891684619,1.41869698,59295.0,59294.0,0.0009075]
[1723891685056,1.42969698,59295.0,59294.0,0.0009075]
[1723891685191,1.41669698,59295.0,59294.0,0.0009075]
[1723891685393,1.40569698,59295.0,59294.0,0.0009075]
[1723891685619,1.58441417,59295.0,59294.0,0.0009075]
[1723891685818,1.72421061,59295.0,59294.0,0.0009075]
[1723891685993,1.73721061,59295.0,59294.0,0.0009075]
[1723891686199,1.72721061,59295.0,59294.0,0.0009075]
[1723891686401,1.82521061,59295.0,59294.0,0.0009075]
[1723891686597,1.82721061,59295.0,59294.0,0.0009075]
[1723891686802,1.84121061,59295.0,59294.0,0.0009075]
[1723891686982,1.66849342,59295.0,59294.0,0.0009075]
[1723891687189,1.51736046,59295.0,59294.0,0.0009075]
[1723891687570,1.51936046,59295.0,59294.0,0.0009075]
[1723891687925,1.50636046,59295.0,59294.0,0.0009075]
[1723891688126,1.50359828,59295.0,59294.0,0.0009075]
[1723891688444,1.52559828,59295.0,59294.0,0.0009075]
[1723891688644,1.51359828,59295.0,59294.0,0.0009075]
[1723891688883,1.50359828,59295.0,59294.0,0.0009075]
[1723891689017,1.53159828,59295.0,59294.0,0.0009075]
[1723891689437,1.59422677,59295.0,59294.0,0.0009075]
[1723891690118,1.53426176,59295.0,59294.0,0.0009075]
[1723891690364,1.53159828,59295.0,59294.0,0.0009075]
[1723891690567,1.68723261,59295.0,59294.0,0.0009075]
[1723891690776,1.6555238,59295.0,59294.0,0.0009075]
[1723891690944,1.65186032,59295.0,59294.0,0.0009075]
[1723891691143,1.83109284,59295.0,59294.0,0.0009075]
[1723891691607,2.08406484,59295.0,59294.0,0.0009075]
[1723891691810,2.08572832,59295.0,59294.0,0.0009075]
[1723891692770,2.07805034,59295.0,59294.0,0.0009075]
[1723891692976,2.08005034,59295.0,59294.0,0.0009075]
[1723891693436,2.07638686,59295.0,59294.0,0.0009075]
[1723891694170,2.1079852,59295.0,59294.0,0.0009075]
[1723891694558,2.0763214,59295.0,59294.0,0.0009075]
[1723891694962,2.07798488,59295.0,59294.0,0.0009075]
[1723891695173,2.22881809,59295.0,59294.0,0.0009075]
[1723891695340,2.10962151,59295.0,59294.0,0.0009075]
[1723891695723,2.22865567,59295.0,59294.0,0.0009075]
[1723891695928,2.07782404,59295.0,59294.0,0.0009075]
[1723891696277,2.07713152,59295.0,59294.0,0.0009075]
[1723891696600,2.11161243,59295.0,59294.0,0.0009075]
[1723891696995,2.07873888,59295.0,59294.0,0.0009075]
[1723891698125,2.07673888,59295.0,59294.0,0.0009075]
[1723891698370,2.07873888,59295.0,59294.0,0.0009075]
[1723891701609,2.07441103,59295.0,59294.0,0.0009075]
[1723891701838,2.24200511,59295.0,59294.0,0.0009075]
[1723891702962,1.81381509,59295.0,59294.0,0.0009075]
[1723891703130,1.81174235,59295.0,59294.0,0.0009075]
[1723891703678,1.64622101,59295.0,59294.0,0.0009075]
[1723891703884,1.64788449,59295.0,59294.0,0.0009075]
[1723891704093,1.81440007,59295.0,59294.0,0.0009075]
[1723891704903,1.81073659,59295.0,59294.0,0.0009075]
[1723891705105,1.63137592,59295.0,59294.0,0.0009075]
[1723891705356,1.46686034,59295.0,59294.0,0.0009075]
[1723891707033,1.37236034,59295.0,59294.0,0.0009075]
[1723891707236,1.46992937,59295.0,59294.0,0.0009075]
[1723891708607,1.37542937,59295.0,59294.0,0.0009075]
[1723891708738,1.46992937,59295.0,59294.0,0.0009075]
[1723891710604,1.46982781,59295.0,59294.0,0.0009075]
[1723891712091,1.64000221,59295.0,59294.0,0.0009075]
[1723891712288,1.39082781,59295.0,59294.0,0.0009075]
[1723891713327,1.54173863,59295.0,59294.0,0.0009075]
[1723891715125,1.5128267,59295.0,59294.0,0.0009075]
[1723891716574,1.51349018,59295.0,59294.0,0.0009075]
[1723891716776,1.83124472,59295.0,59294.0,0.0009075]
[1723891717177,1.99953192,59295.0,59294.0,0.0009075]
[1723891717394,2.0011954,59295.0,59294.0,0.0009075]
[1723891717943,1.99953192,59295.0,59294.0,0.0009075]
[1723891719016,2.0011954,59295.0,59294.0,0.0009075]
[1723891719444,1.99953192,59295.0,59294.0,0.0009075]
[1723891719647,1.82797738,59295.0,59294.0,0.0009075]
[1723891720259,1.6580267,59295.0,59294.0,0.0009075]
[1723891721283,1.65969018,59295.0,59294.0,0.0009075]
[1723891722641,1.68312829,59295.0,59294.0,0.1377075]
[1723891722885,1.58862829,59295.0,59294.0,0.1377075]
[1723891723115,1.68312829,59295.0,59294.0,0.1377075]
[1723891725972,1.5128267,59295.0,59294.0,0.1377075]
[1723891727056,1.68319142,59295.0,59294.0,0.1377075]
[1723891729232,1.5128267,59295.0,59294.0,0.0009075]
[1723891729439,1.66520991,59295.0,59294.0,0.0009075]
[1723891732579,1.5128267,59295.0,59294.0,0.0009075]
[1723891732779,1.4183267,59295.0,59294.0,0.0009075]
[1723891732987,1.33802034,59295.0,59294.0,0.0009075]
[1723891733185,1.51270343,59295.0,59294.0,0.0009075]
[1723891735907,1.76667543,59295.0,59294.0,0.0009075]
[1723891736108,1.68525797,59295.0,59294.0,0.0009075]
[1723891736409,1.51370343,59295.0,59294.0,0.0009075]
[1723891737701,1.50798431,59295.0,59294.0,0.0009075]
[1723891738666,1.51164779,59295.0,59294.0,0.0009075]
[1723891739705,1.50798431,59295.0,59294.0,0.0009075]
[1723891741250,1.51108551,59295.0,59294.0,0.0009075]
[1723891744471,1.41658551,59295.0,59294.0,0.0009075]
[1723891744685,1.51108551,59295.0,59294.0,0.1421075]
[1723891745415,1.41558551,59295.0,59294.0,0.1421075]
[1723891745619,1.68048748,59295.0,59294.0,0.1421075]
[1723891745929,1.68048711,59295.0,59294.0,0.1421075]
[1723891746328,1.58598711,59295.0,59294.0,0.1421075]
[1723891746530,1.68048711,59295.0,59294.0,0.1421075]
[1723891747516,1.41558551,59295.0,59294.0,0.1421075]
[1723891747716,1.51008551,59295.0,59294.0,0.1421075]
[1723891748438,1.68048711,59295.0,59294.0,0.1421075]
[1723891748646,1.51008551,59295.0,59294.0,0.1421075]
[1723891748850,1.68048711,59295.0,59294.0,0.1421075]
[1723891749678,1.68696473,59295.0,59294.0,0.1421075]
[1723891750050,1.51655967,59295.0,59294.0,0.1421075]
[1723891750455,1.68692788,59295.0,59294.0,0.1421075]
[1723891750878,1.51655967,59295.0,59294.0,0.1421075]
[1723891751143,1.68692825,59295.0,59294.0,0.1421075]
[1723891752138,1.51655967,59295.0,59294.0,0.1421075]
[1723891752256,1.6869252,59295.0,59294.0,0.1421075]
[1723891752461,1.51655967,59295.0,59294.0,0.1421075]
[1723891753506,1.6869252,59295.0,59294.0,0.1421075]
[1723891754206,1.33802034,59295.0,59294.0,0.1421075]
[1723891754386,1.686997,59295.0,59294.0,0.1421075]
[1723891755512,1.51671692,59295.0,59294.0,0.1421075]
[1723891755724,1.68699652,59295.0,59294.0,0.1421075]
[1723891755948,1.51671692,59295.0,59294.0,0.1421075]
[1723891756934,1.3913268,59295.0,59294.0,0.1421075]
[1723891757135,1.51247805,59295.0,59294.0,0.1421075]
[1723891758208,1.41797805,59295.0,59294.0,0.1421075]
[1723891758419,1.51247805,59295.0,59294.0,0.1421075]
[1723891758843,1.5141648,59295.0,59294.0,0.1421075]
[1723891762108,1.5141648,59295.0,59294.0,0.0009075]
[1723891762109,1.74958182,59295.0,59294.0,0.0009075]
[1723891763303,1.6954531,59295.0,59294.0,0.0009075]
[1723891763507,1.74344536,59295.0,59294.0,0.0009075]
[1723891765433,1.74510884,59295.0,59294.0,0.0009075]
[1723891765666,1.74710884,59295.0,59294.0,0.0009075]
[1723891765867,1.74344536,59295.0,59294.0,0.0009075]
[1723891766715,1.74710884,59295.0,59294.0,0.0009075]
[1723891766904,1.74510884,59295.0,59294.0,0.0009075]
[1723891767101,1.74344536,59295.0,59294.0,0.0009075]
[1723891767610,1.74457254,59295.0,59294.0,0.0009075]
[1723891767768,1.74457478,59295.0,59294.0,0.0009075]
[1723891768128,1.74623826,59295.0,59294.0,0.0009075]
[1723891768359,1.74823826,59295.0,59294.0,0.0009075]
[1723891768943,1.74457478,59295.0,59294.0,0.0009075]
[1723891769884,1.74623826,59295.0,59294.0,0.0009075]
[1723891770080,1.65007478,59295.0,59294.0,0.0009075]
[1723891770286,1.74457478,59295.0,59294.0,0.0009075]
[1723891772487,1.59185776,59295.0,59294.0,0.0009075]
[1723891773376,1.41565776,59295.0,59294.0,0.0009075]
[1723891773572,1.51015776,59295.0,59294.0,0.0009075]
[1723891773780,1.51015776,59295.0,59294.0,0.0625075]
[1723891774314,1.50915776,59295.0,59294.0,0.0625075]
[1723891779842,1.16168576,59295.0,59294.0,0.1412075]
[1723891780045,1.25618576,59295.0,59294.0,0.1412075]
[1723891780424,1.42656667,59295.0,59294.0,0.1412075]
[1723891780622,1.25618576,59295.0,59294.0,0.1412075]
[1723891780879,0.410464,59294.0,59293.0,0.00043416]
[1723891781087,1.30317076,59294.0,59293.0,0.00043416]
[1723891781275,1.29970005,59294.0,59293.0,0.00043416]
[1723891781821,1.55267605,59294.0,59293.0,0.00043416]
[1723891782027,1.56667605,59294.0,59293.0,0.00043416]
[1723891782201,1.58067605,59294.0,59293.0,0.00043416]
[1723891782356,1.58433953,59294.0,59293.0,0.00043416]
[1723891784752,1.58067605,59294.0,59293.0,0.00043416]
[1723891785725,1.58360642,59294.0,59293.0,0.00043416]
[1723891786356,1.58560642,59294.0,59293.0,0.00043416]
[1723891786683,1.51884294,59294.0,59293.0,0.00043416]
[1723891789254,1.44264294,59294.0,59293.0,0.00043416]
[1723891789578,1.61419748,59294.0,59293.0,0.00043416]
[1723891790367,1.44560156,59294.0,59293.0,0.00043416]
[1723891791793,1.44560156,59294.0,59293.0,0.06203416]
[1723891793520,1.54010156,59294.0,59293.0,0.06203416]
[1723891793710,1.53910156,59294.0,59293.0,0.06203416]
[1723891797055,1.44460156,59294.0,59293.0,0.06203416]
[1723891797250,1.53992656,59294.0,59293.0,0.06203416]
[1723891797856,1.53992656,59294.0,59293.0,0.14073416]
[1723891800057,1.81988784,59294.0,59293.0,0.00043416]
[1723891800259,1.75478784,59294.0,59293.0,0.00043416]
[1723891800433,1.67858784,59294.0,59293.0,0.00043416]
[1723891800660,1.53992656,59294.0,59293.0,0.00043416]
[1723891800969,1.44542656,59294.0,59293.0,0.00043416]
[1723891801170,1.53992656,59294.0,59293.0,0.06373416]
[1723891802405,1.53940591,59294.0,59293.0,0.06373416]
[1723891807586,1.53940591,59294.0,59293.0,0.14243416]
[1723891808969,1.19192991,59294.0,59293.0,0.14243416]
[1723891809169,1.45687109,59294.0,59293.0,0.14243416]
[1723891809401,1.28642991,59294.0,59293.0,0.14243416]
[1723891810733,0.76739937,59294.0,59293.0,0.14243416]
[1723891810936,0.86189937,59294.0,59293.0,0.14243416]
[1723891811136,0.74230132,59294.0,59293.0,0.14243416]
[1723891811339,0.74631969,59294.0,59293.0,0.14243416]
[1723891811865,0.87012385,59294.0,59293.0,0.14243416]
[1723891814460,0.87012385,59294.0,59293.0,0.14277068]
[1723891814656,0.74631969,59294.0,59293.0,0.14243416]
[1723891815725,0.7446808,59294.0,59293.0,0.14243416]
[1723891816798,0.86671796,59294.0,59293.0,0.14243416]
[1723891817218,1.11969396,59294.0,59293.0,0.14243416]
[1723891819503,0.86671796,59294.0,59293.0,0.14243416]
[1723891819851,0.9976568,59294.0,59293.0,0.14243416]
[1723891820096,0.7446808,59294.0,59293.0,0.14243416]
[1723891820295,0.99819628,59294.0,59293.0,0.14243416]
[1723891820511,1.12078775,59294.0,59293.0,0.14243416]
[1723891824370,1.12078775,59294.0,59293.0,0.06373416]
[1723891824371,1.29234229,59294.0,59293.0,0.06373416]
[1723891824584,1.60868785,59294.0,59293.0,0.00043416]
[1723891824814,1.86166385,59294.0,59293.0,0.00043416]
[1723891827945,1.71554357,59294.0,59293.0,0.00043416]
[1723891828515,1.71554357,59294.0,59293.0,0.08243416]
[1723891829331,1.71001702,59294.0,59293.0,0.08243416]
[1723891832469,1.53980206,59294.0,59293.0,0.08243416]
[1723891832925,1.28682606,59294.0,59293.0,0.08243416]
[1723891833120,1.45704757,59294.0,59293.0,0.14683416]
[1723891833821,1.45696487,59294.0,59293.0,0.14683416]
[1723891834000,1.45696487,59294.0,59293.0,0.14664436]
[1723891834551,1.28673718,59294.0,59293.0,0.14664436]
[1723891834939,1.45697214,59294.0,59293.0,0.14664436]
[1723891836494,1.28673718,59294.0,59293.0,0.14664436]
[1723891837265,1.45694637,59294.0,59293.0,0.14664436]
[1723891838386,1.23511451,59294.0,59293.0,0.14664436]
[1723891838629,1.28739691,59294.0,59293.0,0.14664436]
[1723891841064,1.28739691,59294.0,59293.0,0.06464436]
[1723891841386,1.45762926,59294.0,59293.0,0.06464436]
[1723891841787,1.45762926,59294.0,59293.0,0.14334436]
[1723891844408,1.28739691,59294.0,59293.0,0.14334436]
[1723891851413,1.11584237,59294.0,59293.0,0.14368088]
[1723891852030,1.1192139,59294.0,59293.0,0.14368088]
[1723891853083,0.6717379,59294.0,59293.0,0.14368088]
[1723891853290,0.51993964,59294.0,59293.0,0.14368088]
[1723891853736,0.26696364,59294.0,59293.0,0.14368088]
[1723891853939,0.41834927,59294.0,59293.0,0.14368088]
[1723891854111,0.26696364,59294.0,59293.0,0.14368088]
[1723891854329,0.51993964,59294.0,59293.0,0.14368088]
[1723891856604,0.52273277,59294.0,59293.0,0.14368088]
[1723891858260,0.08552997,59294.0,59293.0,0.14368088]
[1723891858663,0.15492076,59294.0,59293.0,0.14368088]
[1723891858913,0.21162573,59294.0,59293.0,0.14368088]
[1723891859124,0.19762573,59294.0,59293.0,0.14368088]
[1723891859922,0.32411373,59294.0,59293.0,0.14368088]
[1723891860472,0.33411373,59294.0,59293.0,0.14368088]
[1723891860683,0.31182311,59294.0,59293.0,0.14368088]
[1723891860884,0.31782311,59294.0,59293.0,0.14368088]
[1723891861093,0.32782311,59294.0,59293.0,0.14368088]
[1723891861292,0.20133511,59294.0,59293.0,0.14368088]
[1723891861494,0.28583511,59294.0,59293.0,0.14368088]
[1723891861957,0.29183511,59294.0,59293.0,0.14368088]
[1723891862567,0.16575724,59294.0,59293.0,0.14368088]
[1723891862767,0.29183511,59294.0,59293.0,0.14368088]
[1723891863323,0.29224524,59294.0,59293.0,0.14368088]
[1723891863523,0.29183511,59294.0,59293.0,0.14368088]
[1723891864135,0.16543381,59294.0,59293.0,0.14368088]
[1723891865591,0.26624645,59294.0,59293.0,0.14368088]
[1723891868806,0.012825,59294.0,59293.0,0.14368088]
[1723891869008,0.012825,59294.0,59293.0,0.27017088]
[1723891869163,0.012825,59294.0,59293.0,0.52315088]
[1723891869365,0.08841923,59294.0,59293.0,0.52315088]
[1723891870324,0.08841923,59294.0,59293.0,0.27017088]
[1723891870945,0.012825,59294.0,59293.0,0.79913088]
[1723891871733,0.000825,59294.0,59293.0,0.79913088]
[1723891872090,0.006825,59294.0,59293.0,0.79913088]
[1723891873521,0.012825,59294.0,59293.0,0.79913088]
[1723891877873,0.000825,59294.0,59293.0,0.79913088]
[1723891878108,0.005825,59294.0,59293.0,0.79913088]
[1723891878300,0.010825,59294.0,59293.0,0.79913088]
[1723891879590,0.010825,59294.0,59293.0,0.14368088]
[1723891880123,0.06119325,59294.0,59293.0,0.14368088]
[1723891880526,0.010825,59294.0,59293.0,0.14368088]
[1723891880733,0.06119325,59294.0,59293.0,0.14368088]
[1723891881139,0.15569325,59294.0,59293.0,0.14368088]
[1723891883283,0.06119325,59294.0,59293.0,0.06498088]
[1723891883687,0.06119325,59294.0,59293.0,0.00024436]
[1723891883688,0.46640641,59294.0,59293.0,0.00024436]
[1723891883911,0.46640641,59294.0,59293.0,0.00058088]
[1723891883912,0.90602884,59294.0,59293.0,0.00058088]
[1723891884089,0.78009631,59294.0,59293.0,0.00058088]
[1723891885971,1.03307231,59294.0,59293.0,0.00058088]
[1723891886987,0.25772031,59294.0,59293.0,0.14888088]
[1723891887703,0.1980269,59294.0,59293.0,0.14888088]
[1723891887892,0.25500694,59294.0,59293.0,0.14888088]
[1723891890684,0.38099276,59294.0,59293.0,0.14888088]
[1723891891769,0.25500694,59294.0,59293.0,0.14888088]
[1723891891996,0.38099276,59294.0,59293.0,0.14888088]
[1723891893490,0.19429304,59294.0,59293.0,0.14888088]
[1723891893678,0.32027886,59294.0,59293.0,0.14888088]
[1723891894250,0.19379086,59294.0,59293.0,0.14888088]
[1723891895955,0.19610182,59294.0,59293.0,0.14888088]
[1723891898487,0.07005551,59294.0,59293.0,0.14888088]
[1723891900406,0.07015247,59294.0,59293.0,0.14888088]
[1723891902591,0.07015247,59294.0,59293.0,0.14688088]
[1723891903367,0.07015247,59294.0,59293.0,0.27337088]
[1723891903607,0.13692587,59294.0,59293.0,0.14778838]
[1723891903962,0.19625334,59294.0,59293.0,0.14778838]
[1723891904603,0.19625334,59294.0,59293.0,0.27427838]
[1723891904779,0.19625334,59294.0,59293.0,0.52725838]
[1723891904999,0.06128548,59294.0,59293.0,0.78023838]
[1723891905392,0.010825,59294.0,59293.0,0.78023838]
[1723891906174,0.010825,59294.0,59293.0,0.89773838]
[1723891906577,0.010825,59294.0,59293.0,1.32227292]
[1723891907609,0.005825,59294.0,59293.0,1.32227292]
[1723891907805,0.000825,59294.0,59293.0,1.32227292]
[1723891908168,0.000825,59294.0,59293.0,1.32427292]
[1723891908483,0.000825,59294.0,59293.0,1.32227292]
[1723891908673,0.003825,59294.0,59293.0,1.32527292]
[1723891908889,0.003825,59294.0,59293.0,1.32227292]
[1723891909415,0.002825,59294.0,59293.0,1.32527292]
[1723891909565,0.002825,59294.0,59293.0,1.32627292]
[1723891910563,0.002825,59294.0,59293.0,1.32827292]
[1723891911221,0.001825,59294.0,59293.0,1.32827292]
[1723891911577,0.002825,59294.0,59293.0,1.33127292]
[1723891911780,0.001825,59294.0,59293.0,1.32627292]
[1723891911980,0.002825,59294.0,59293.0,1.32927292]
[1723891913216,0.002825,59294.0,59293.0,1.03921838]
[1723891914707,0.002825,59294.0,59293.0,1.06221838]
[1723891918314,0.001825,59294.0,59293.0,1.05921838]
[1723891918517,0.000825,59294.0,59293.0,1.05621838]
[1723891918725,0.001825,59294.0,59293.0,1.05921838]
[1723891918926,0.002825,59294.0,59293.0,1.06221838]
[1723891920100,0.002825,59294.0,59293.0,1.05921838]
[1723891920324,0.001825,59294.0,59293.0,1.05921838]
[1723891920952,0.002825,59294.0,59293.0,1.06221838]
[1723891921363,0.002825,59294.0,59293.0,0.53325838]